{"text_format":"1","workbook":"xlsx","n_sheets":1,"sheets":["Eelarve kavand"],"not_rendered":{"charts":0,"images":0,"macros":0,"external_links":0,"defined_names":0,"comments":0,"pivot_tables":0},"unopened":[],"bounds":{"document_bytes":16777216,"sheet_cells":100000,"rows_first":2000,"rows_last":500,"rows_between":2000,"halvings":0,"cell_chars":16384,"cell_head_chars":4096},"cells_cut":0,"cells_raw":0,"read":"whole","date_system":"1900"}

{"sheet":"Eelarve kavand","index":0,"n_rows":22,"n_cols":13,"rows_kept":22,"cut":false,"hidden":false,"merged":[[0,0,0,7],[3,9,4,9],[3,10,4,10],[3,12,4,12],[2,9,2,12]]}
["Personaalse uurimistoetuse taotluse eelarve koostamise abivahend. NB! Detailset eelarvet taotluse puhul ei hinnata. See tabel on mõeldud abivahendina taotlejale, hindamaks, millist granditüüpi taotleda. Fikseeritud grandimahust erineva summa taotlemine on mõistlik siis, kui see jääb olulisel määral alla suurema või üle väiksema ettenähtud grandimahu.  "]
["Kululiik ",2019,2020,2021,2022,"KOKKU","Keskmine aastane summa",null,null,"Kui projekti eelarve on välja arvutatud, saab hinnata, milline granditüüp kõige paremini sobiks"]
["Otsene kulu",{"$f":"SUM(B4,B15)","v":0},{"$f":"SUM(C4,C15)","v":0},{"$f":"SUM(D4,D15)","v":0},{"$f":"SUM(E4,E15)","v":0},{"$f":"SUM(B3:E3)","v":0},{"$f":"AVERAGEIF(B3:E3, \">0\", B3:E3)","v":{"$error":"#DIV/0!"}},null,null,"Stardigrandi fikseeritud mahud 2018. aastal esitatud taotlustele: "]
["Personalikulu, sh",{"$f":"SUM(B5,B11)","v":0},{"$f":"SUM(C5,C11)","v":0},{"$f":"SUM(D5,D11)","v":0},{"$f":"SUM(E5,E11)","v":0},0,{"$f":"AVERAGEIF(B4:E4,\">0\",B4:E4)","v":{"$error":"#DIV/0!"}},"NB! Värvilised lahtrid on lukustatud, neisse ei ole vaja midagi sisestada, nendesse arvutatakse summad automaatselt",null,null,"Otsesed kulud (aastas)","Üldkulu","Fikseeritud grandimaht kokku (aastas) "]
["töötasud koos kõigi riiklike maksudega, maksetega ja seadusest tulenevate hüvitistega, sh",{"$f":"SUM(B6:B10)","v":0},{"$f":"SUM(C6:C10)","v":0},{"$f":"SUM(D6:D10)","v":0},{"$f":"SUM(E6:E10)","v":0},0,null,null,null,null,null,"(aastas)"]
["projektijuht",null,null,null,null,null,null,"Igasse lahtrisse arvestada vastava kulurea aastane kulu",null,"Mitteeksperimentaalne väike stardigrant (SG)","37 500",9375,"46 875"]
["põhitäitja 1",null,null,null,null,null,null,null,null,"Mitteeksperimentaalne suur SG","60 000","15 000","75 000"]
["Vajadusel lisada siia ridu rohkemate põhitäitjate kaasamise korral",null,null,null,null,null,null,null,null,"Eksperimentaalne väike SG","40 500","10 125","50 625"]
["täitja 1",null,null,null,null,null,null,null,null,"Eksperimentaalne suur SG","65 000","16 250","81 250"]
["Vajadusel lisada siia ridu rohkemate muude täitjate kaasamise korral"]
["üliõpilaste teadustöö stipendiumid",{"$f":"SUM(B12:B14)","v":0},{"$f":"SUM(C12:C14)","v":0},{"$f":"SUM(D12:D14)","v":0},{"$f":"SUM(E12:E14)","v":0},0]
["üliõpilane 1"]
["üliõpilane 2"]
["Vajadusel lisada siia ridu rohkemate stipendiumi saajate kaasamise korral"]
["Teadustöö kulu, sh",{"$f":"SUM(B16:B20)","v":0},{"$f":"SUM(C16:C20)","v":0},0,0,0,{"$f":"AVERAGEIF(B15:E15,\">0\",B15:E15)","v":{"$error":"#DIV/0!"}}]
["lähetuskulud, sh üliõpilaste osalemise kulud konverentsidel jms",null,null,null,null,0,null,"Siin arvestada kõigi projekti kaasatud isikute orienteeruv lähetuskulu aastas kokku "]
["projekti täitmisega otseselt seotud põhivara (vastavalt vastuvõtva asutuse poolt sätestatud määratlusele) soetamiskulud",null,null,null,null,0,null,"Ostud, mis jäävad alla asutuses kehtestatud põhivara määra, näidata muude teadustöö kulude all. Asutuses kehtestatud põhivara määra kohta saab infot asutuse rahandusosakonnast (raamatupidamisest)"]
["projekti täitmisel saadud teadus- ja arendustegevuse tulemuste publitseerimise ja populariseerimisega ning intellektuaalomandi kaitsmisega seotud kulud",null,null,null,null,0]
["sisseostetavad teadus- ja arendusteenused",null,null,null,null,0]
["muud teadustöö läbiviimiseks vajalikud otsesed kulud lähtuvalt uurimisprojekti eripärast",null,null,null,null,0,null,"Siin kajastada ostud, mis jäävad alla asutuses kehtestatud põhivara määra. Samuti saab siin näidata kulutusi, mis on seotud eksperimentaalse projektiga"]
["Üldkulu",{"$f":"B3*0.25","v":0},{"$f":"C3*0.25","v":0},{"$f":"D3*0.25","v":0},{"$f":"E3*0.25","v":0},0,null,"Üldkulu arvutatakse automaatselt "]
["Grandimaht kokku",{"$f":"SUM(B3,B21)","v":0},{"$f":"SUM(C3,C21)","v":0},{"$f":"SUM(D3,D21)","v":0},{"$f":"SUM(E3,E21)","v":0},0,{"$f":"AVERAGEIF(B22:E22, \">0\",B22:E22)","v":{"$error":"#DIV/0!"}},"Siin real kajastuv summa on taotlejale orientiiriks grandimahu (suur või väike) valikul. Juhul, kui see summa jääb suure ja väikse stardigrandi mahu vahele, võib taotleja a) valida suure või väikse grandimahu seda valikut põhjendades või b) taotleda fikseeritud grandimahtudest erinevat granti (ent mitte suuremat, kui on fikseeritud suure grandi maht). Näiteks kui eelarve abivahendit kasutades kujuneb mitteeksperimentaalse stardigrandi taotlejal otseste kulude keskmiseks aastaseks summaks 57988 eurot või 61 200 eurot, tuleks taotluses otseste kulude taotletavaks summaks märkida 60 000 eurot (mitteeksperimentaalse suure stardigrandi otseste kulude fikseeritud maht). "]